fUST/lending_fUST_20250326
["ID","MTS","AMOUNT","RATE_DAILY","PERIOD"]
[356680523,1742941701255,-500.0,0.0001315,2]
[356680524,1742941701281,-2188.46,0.0001315,2]
[356680525,1742941701307,-17091.35,0.0001315,2]
[356680526,1742941701478,-517.13,0.0001315,2]
[356680527,1742941701518,-1366.45,0.0001315,2]
[356680528,1742941701543,-615.01,0.0001315,2]
[356680529,1742941701571,-500.0,0.0001315,2]
[356680530,1742941701596,-565.9,0.00013424,2]
[356680531,1742941701618,-500.0,0.00013424,2]
[356680532,1742941701641,-393.19,0.00013424,2]
[356680533,1742941701664,-500.0,0.00013424,2]
[356680534,1742941701687,-515.85,0.00013424,2]
[356680535,1742941701712,-500.0,0.00013424,2]
[356680536,1742941701734,-500.0,0.00013424,2]
[356680537,1742941701757,-1288.22,0.00013424,2]
[356680538,1742941701781,-1134.25,0.00013424,2]
[356680539,1742941701804,-1120.55,0.00013424,2]
[356680540,1742941701827,-1023.14,0.00013424,2]
[356680541,1742941701850,-500.0,0.00013424,2]
[356680542,1742941701874,-500.0,0.00013424,2]
[356680543,1742941701898,-500.0,0.00013424,2]
[356680544,1742941701925,-366.85,0.00013424,2]
[356680545,1742941701950,-500.0,0.00013424,2]
[356680546,1742941701974,-500.0,0.00013424,2]
[356680547,1742941701999,-500.0,0.00013424,2]
[356680548,1742941702023,-500.0,0.00013424,2]
[356680549,1742941702047,-588.12,0.00013424,2]
[356680550,1742941702070,-500.0,0.00013424,2]
[356680551,1742941702093,-500.0,0.00013424,2]
[356680552,1742941702117,-500.0,0.00013424,2]
[356680553,1742941702142,-500.0,0.00013424,2]
[356680554,1742941702165,-500.0,0.00013424,2]
[356680555,1742941702188,-500.0,0.00013424,2]
[356680556,1742941702214,-500.0,0.00013424,2]
[356680557,1742941702239,-500.0,0.00013424,2]
[356680558,1742941702264,-233.08,0.00013424,2]
[356680559,1742941702286,-500.0,0.00013424,2]
[356680560,1742941702310,-500.0,0.00013424,2]
[356680561,1742941702333,-1409.12,0.00013424,2]
[356680562,1742941702355,-926.76,0.00013424,2]
[356680563,1742941702379,-500.0,0.00013424,2]
[356680564,1742941702403,-500.0,0.00013424,2]
[356680565,1742941702426,-500.0,0.00013424,2]
[356680566,1742941702449,-630.17,0.00013424,2]
[356680567,1742941702473,-500.0,0.00013424,2]
[356680568,1742941702495,-500.0,0.00013424,2]
[356680569,1742941702517,-500.0,0.00013424,2]
[356680570,1742941702540,-500.0,0.00013424,2]
[356680571,1742941702564,-618.51,0.00013424,2]
[356680572,1742941702587,-1032.33,0.00013424,2]
[356680573,1742941702610,-1205.01,0.00013424,2]
[356680574,1742941702631,-328.44,0.00013424,2]
[356680575,1742941702653,-500.0,0.00013424,2]
[356680576,1742941702674,-500.0,0.00013424,2]
[356680577,1742941702697,-500.0,0.00013424,2]
[356680578,1742941702722,-500.0,0.00013424,2]
[356680579,1742941702745,-607.04,0.00013424,2]
[356680580,1742941702768,-500.0,0.00013424,2]
[356680581,1742941702792,-508.99,0.00013424,2]
[356680582,1742941702815,-477.69,0.00013424,2]
[356680583,1742941702839,-163.85,0.00013424,2]
[356680584,1742941702864,-1958.7,0.00013424,2]
[356680585,1742941702887,-1712.33,0.00013424,2]
[356680586,1742941702915,-500.0,0.00013424,2]
[356680587,1742941702939,-500.0,0.00013424,2]
[356680588,1742941702965,-500.0,0.00013424,2]
[356680589,1742941702990,-500.0,0.00013424,2]
[356680590,1742941703013,-500.0,0.00013424,2]
[356680591,1742941703041,-2188.46,0.00013424,2]
[356680592,1742941703064,-17091.35,0.00013424,2]
[356680593,1742941703087,-517.13,0.00013424,2]
[356680594,1742941703110,-1366.45,0.00013424,2]
[356680595,1742941703133,-500.0,0.00013424,2]
[356680596,1742941703156,-6211.58191697,0.00013562,2]
[356680597,1742941703179,-565.9,0.00013698,2]
[356680598,1742941703202,-500.0,0.00013698,2]
[356680599,1742941703226,-500.0,0.00013698,2]
[356680600,1742941703249,-515.85,0.00013698,2]
[356680601,1742941703272,-500.0,0.00013698,2]
[356680602,1742941703296,-500.0,0.00013698,2]
[356680603,1742941703321,-1288.22,0.00013698,2]
[356680604,1742941703345,-1134.25,0.00013698,2]
[356680605,1742941703369,-1120.55,0.00013698,2]
[356680606,1742941703392,-1023.14,0.00013698,2]
[356680607,1742941703416,-500.0,0.00013698,2]
[356680608,1742941703440,-457.27636398,0.00013698,2]
[356680609,1742941703464,-500.0,0.00013698,2]
[356680610,1742941703488,-500.0,0.00013698,2]
[356680611,1742941703516,-500.0,0.00013698,2]
[356680612,1742941703540,-500.0,0.00013698,2]
[356680613,1742941703564,-500.0,0.00013698,2]
[356680614,1742941703588,-500.0,0.00013698,2]
[356680615,1742941703611,-500.0,0.00013698,2]
[356680616,1742941703635,-500.0,0.00013698,2]
[356680617,1742941703658,-565.36,0.00013698,2]
[356680618,1742941703682,-500.0,0.00013698,2]
[356680619,1742941703706,-500.0,0.00013698,2]
[356680620,1742941703730,-160.46,0.00013698,2]
[356680621,1742941703753,-500.0,0.00013698,2]
[356680622,1742941703777,-500.0,0.00013698,2]
[356680623,1742941703800,-500.0,0.00013698,2]
[356680624,1742941703822,-1409.12,0.00013698,2]
[356680625,1742941703844,-926.76,0.00013698,2]
[356680626,1742941703865,-500.0,0.00013698,2]
[356680627,1742941703888,-500.0,0.00013698,2]
[356680628,1742941703911,-500.0,0.00013698,2]
[356680629,1742941703935,-500.0,0.00013698,2]
[356680630,1742941703959,-500.0,0.00013698,2]
[356680631,1742941703982,-500.0,0.00013698,2]
[356680632,1742941704006,-500.0,0.00013698,2]
[356680633,1742941704029,-500.0,0.00013698,2]
[356680634,1742941704053,-618.51,0.00013698,2]
[356680635,1742941704076,-1032.33,0.00013698,2]
[356680636,1742941704102,-1205.01,0.00013698,2]
[356680637,1742941704125,-156.06785671,0.00013698,2]
[356680638,1742941704149,-500.0,0.00013698,2]
[356680639,1742941704174,-500.0,0.00013698,2]
[356680640,1742941704198,-575.11,0.00013698,2]
[356680641,1742941704224,-500.0,0.00013698,2]
[356680642,1742941704249,-607.04,0.00013698,2]
[356680643,1742941704272,-500.0,0.00013698,2]
[356680644,1742941704297,-1958.7,0.00013698,2]
[356680645,1742941704325,-1712.33,0.00013698,2]
[356680646,1742941704349,-500.0,0.00013698,2]
[356680647,1742941704373,-500.0,0.00013698,2]
[356680648,1742941704398,-500.0,0.00013698,2]
[356680649,1742941704422,-500.0,0.00013698,2]
[356680650,1742941704446,-570.733567,0.00013698,2]
[356680651,1742941704471,-2188.46,0.00013698,2]
[356680652,1742941704494,-17091.35,0.00013698,2]
[356680653,1742941704517,-1000.0,0.00013698,2]
[356680654,1742941704539,-1000.0,0.00013698,2]
[356680655,1742941704562,-1000.0,0.00013698,2]
[356680656,1742941704584,-1000.0,0.00013698,2]
[356680657,1742941704606,-1000.0,0.00013698,2]
[356680658,1742941704630,-517.13,0.00013698,2]
[356680659,1742941704654,-1366.45,0.00013698,2]
[356680660,1742941704676,-500.0,0.00013698,2]
[356680661,1742941704699,-186.807722,0.00013699,2]
[356680662,1742941704722,-187.1829951,0.00013699,2]
[356680663,1742941704744,-500.0,0.00013699,2]
[356680664,1742941704766,-500.0,0.00013699,2]
[356680665,1742941704788,-500.0,0.00013699,2]
[356680666,1742941704810,-324.08200522,0.00013699,2]
[356680667,1742941704831,-585.34677357,0.00013699,2]
[356680668,1742941704851,-258.06734106,0.00013699,2]
[356680669,1742941704873,-500.0,0.00013699,2]
[356680670,1742941704895,-500.0,0.00013699,2]
[356680671,1742941704924,-500.0,0.00013699,2]
[356680672,1742941704949,-500.0,0.00013699,2]
[356680673,1742941704972,-500.0,0.00013699,2]
[356680674,1742941704995,-500.0,0.00013699,2]
[356680675,1742941705019,-500.0,0.00013699,2]
[356680676,1742941705041,-500.0,0.00013699,2]
[356680677,1742941705063,-500.0,0.00013699,2]
[356680678,1742941705085,-524.43930025,0.00013699,2]
[356680679,1742941705107,-500.0,0.00013699,2]
[356680680,1742941705130,-413.81830624,0.00013699,2]
[356680681,1742941705152,-500.0,0.00013699,2]
[356680682,1742941705175,-500.0,0.00013699,2]
[356680683,1742941705198,-500.0,0.00013699,2]
[356680684,1742941705220,-500.0,0.00013699,2]
[356680685,1742941705242,-500.0,0.00013699,2]
[356680686,1742941705265,-500.0,0.00013699,2]
[356680687,1742941705290,-500.0,0.00013699,2]
[356680688,1742941705314,-500.0,0.00013699,2]
[356680689,1742941705338,-500.0,0.00013699,2]
[356680690,1742941705362,-500.0,0.00013699,2]
[356680691,1742941705387,-500.0,0.00013699,2]
[356680692,1742941705410,-500.0,0.00013699,2]
[356680693,1742941705435,-500.0,0.00013699,2]
[356680694,1742941705459,-500.0,0.00013699,2]
[356680695,1742941705484,-500.0,0.00013699,2]
[356680696,1742941705508,-500.0,0.00013699,2]
[356680697,1742941705703,-500.0,0.00013699,2]
[356680698,1742941705729,-500.0,0.00013699,2]
[356680699,1742941705753,-500.0,0.00013699,2]
[356680700,1742941705777,-500.0,0.00013699,2]
[356680701,1742941705801,-500.0,0.00013699,2]
[356680702,1742941705825,-500.0,0.00013699,2]
[356680703,1742941705849,-500.0,0.00013699,2]
[356680704,1742941705872,-500.0,0.00013699,2]
[356680705,1742941705896,-500.0,0.00013699,2]
[356680706,1742941705924,-500.0,0.00013699,2]
[356680707,1742941705948,-500.0,0.00013699,2]
[356680708,1742941705973,-500.0,0.00013699,2]
[356680709,1742941706000,-500.0,0.00013699,2]
[356680710,1742941706024,-600.96339027,0.00013699,2]
[356680711,1742941706048,-500.0,0.00013699,2]
[356680712,1742941706072,-500.0,0.00013699,2]
[356680713,1742941706098,-500.0,0.00013699,2]
[356680714,1742941706123,-500.0,0.00013699,2]
[356680715,1742941706147,-500.0,0.00013699,2]
[356680716,1742941706171,-500.0,0.00013699,2]
[356680717,1742941706196,-500.0,0.00013699,2]
[356680718,1742941706220,-500.0,0.00013699,2]
[356680719,1742941706246,-500.0,0.00013699,2]
[356680720,1742941706271,-500.0,0.00013699,2]
[356680721,1742941706298,-500.0,0.00013699,2]
[356680722,1742941706324,-1581.50619991,0.00013699,2]
[356680723,1742941706349,-1581.50619991,0.00013699,2]
[356680724,1742941706373,-1581.50619991,0.00013699,2]
[356680725,1742941706400,-1581.50619991,0.00013699,2]
[356680726,1742941706426,-1581.50619991,0.00013699,2]
[356680727,1742941706451,-1581.50619991,0.00013699,2]
[356680728,1742941706477,-1581.50619991,0.00013699,2]
[356680729,1742941706501,-1581.50619991,0.00013699,2]
[356680730,1742941706525,-1581.50619991,0.00013699,2]
[356680731,1742941706550,-1581.50619991,0.00013699,2]
[356680732,1742941706574,-1581.50619991,0.00013699,2]
[356680733,1742941706598,-1581.50619991,0.00013699,2]
[356680734,1742941706622,-1581.50619991,0.00013699,2]
[356680735,1742941706646,-1581.50619991,0.00013699,2]
[356680736,1742941706670,-1581.50619991,0.00013699,2]
[356680737,1742941706695,-1581.50619991,0.00013699,2]
[356680738,1742941706719,-1581.50619991,0.00013699,2]
[356680739,1742941706744,-1581.50619991,0.00013699,2]
[356680740,1742941706768,-1581.50619991,0.00013699,2]
[356680741,1742941706793,-1581.50619991,0.00013699,2]
[356680742,1742941706816,-1581.50619991,0.00013699,2]
[356680743,1742941706840,-1581.50619991,0.00013699,2]
[356680744,1742941706863,-1581.50619991,0.00013699,2]
[356680745,1742941706888,-1581.50619991,0.00013699,2]
[356680746,1742941706917,-1581.50619991,0.00013699,2]
[356680747,1742941706946,-1581.50619991,0.00013699,2]
[356680748,1742941706971,-1581.50619991,0.00013699,2]
[356680749,1742941706997,-1581.50619991,0.00013699,2]
[356680750,1742941707026,-1581.50619991,0.00013699,2]
[356680751,1742941707051,-1581.50619991,0.00013699,2]
[356680752,1742941707076,-1581.50619991,0.00013699,2]
[356680753,1742941707103,-1581.50619991,0.00013699,2]
[356680754,1742941707132,-1581.50619991,0.00013699,2]
[356680755,1742941707158,-1581.50619991,0.00013699,2]
[356680756,1742941707183,-1581.50619991,0.00013699,2]
[356680757,1742941707208,-1581.50619991,0.00013699,2]
[356680758,1742941707233,-1581.50619991,0.00013699,2]
[356680759,1742941707259,-1581.50619991,0.00013699,2]
[356680760,1742941707286,-1581.50619991,0.00013699,2]
[356680761,1742941707311,-1581.50619991,0.00013699,2]
[356680762,1742941707338,-1581.50619991,0.00013699,2]
[356680763,1742941707367,-1581.50619991,0.00013699,2]
[356680764,1742941707394,-1581.50619991,0.00013699,2]
[356680765,1742941707421,-1581.50619991,0.00013699,2]
[356680766,1742941707448,-1581.50619991,0.00013699,2]
[356680767,1742941707476,-1581.50619991,0.00013699,2]
[356680768,1742941707504,-1581.50619991,0.00013699,2]
[356680769,1742941707531,-1581.50619991,0.00013699,2]
[356680770,1742941707558,-1661.83667358,0.00013699,2]
[356680771,1742941707586,-1661.83667358,0.00013699,2]
[356680772,1742941707613,-1661.83667358,0.00013699,2]
[356680773,1742941707640,-1661.83667358,0.00013699,2]
[356680774,1742941707666,-1661.83667358,0.00013699,2]
[356680775,1742941707692,-1661.83667358,0.00013699,2]
[356680776,1742941707719,-1661.83667356,0.00013699,2]
[356680777,1742941707742,-19828.7960686,0.00013832,2]
[356680778,1742941707767,-565.9,0.00013972,2]
[356680779,1742941707791,-500.0,0.00013972,2]
[356680780,1742941707814,-500.0,0.00013972,2]
[356680781,1742941707838,-515.85,0.00013972,2]
[356680782,1742941707863,-500.0,0.00013972,2]
[356680783,1742941707886,-500.0,0.00013972,2]
[356680784,1742941707914,-1288.22,0.00013972,2]
[356680785,1742941707937,-1134.25,0.00013972,2]
[356680786,1742941707962,-1120.55,0.00013972,2]
[356680787,1742941707985,-1023.14,0.00013972,2]
[356680788,1742941708011,-500.0,0.00013972,2]
[356680789,1742941708033,-500.0,0.00013972,2]
[356680790,1742941708055,-500.0,0.00013972,2]
[356680791,1742941708079,-500.0,0.00013972,2]
[356680792,1742941708103,-500.0,0.00013972,2]
[356680793,1742941708126,-500.0,0.00013972,2]
[356680794,1742941708149,-500.0,0.00013972,2]
[356680795,1742941708173,-506.5,0.00013972,2]
[356680796,1742941708198,-500.0,0.00013972,2]
[356680797,1742941708224,-500.0,0.00013972,2]
[356680798,1742941708249,-500.0,0.00013972,2]
[356680799,1742941708273,-500.0,0.00013972,2]
[356680800,1742941708297,-500.0,0.00013972,2]
[356680801,1742941708320,-500.0,0.00013972,2]
[356680802,1742941708344,-1409.12,0.00013972,2]
[356680803,1742941708367,-926.76,0.00013972,2]
[356680804,1742941708392,-292.54,0.00013972,2]
[356680805,1742941708416,-500.0,0.00013972,2]
[356680806,1742941708438,-500.0,0.00013972,2]
[356680807,1742941708461,-500.0,0.00013972,2]
[356680808,1742941708485,-500.0,0.00013972,2]
[356680809,1742941708507,-500.0,0.00013972,2]
[356680810,1742941708529,-306.62,0.00013972,2]
[356680811,1742941708552,-618.51,0.00013972,2]
[356680812,1742941708575,-1032.33,0.00013972,2]
[356680813,1742941708598,-1205.01,0.00013972,2]
[356680814,1742941708620,-500.0,0.00013972,2]
[356680815,1742941708644,-231.93,0.00013972,2]
[356680816,1742941708668,-500.0,0.00013972,2]
[356680817,1742941708692,-607.04,0.00013972,2]
[356680818,1742941708717,-500.0,0.00013972,2]
[356680819,1742941708742,-1958.7,0.00013972,2]
[356680820,1742941708766,-1712.33,0.00013972,2]
[356680821,1742941708789,-500.0,0.00013972,2]
[356680822,1742941708813,-500.0,0.00013972,2]
[356680823,1742941708839,-500.0,0.00013972,2]
[356680824,1742941708864,-500.0,0.00013972,2]
[356680825,1742941708890,-2188.46,0.00013972,2]
[356680826,1742941708918,-17091.35,0.00013972,2]
[356680827,1742941708942,-517.13,0.00013972,2]
[356680828,1742941708970,-1366.45,0.00013972,2]
[356680829,1742941708996,-500.0,0.00013972,2]
[356680830,1742941709020,-2000.0,0.00014,2]
[356680831,1742941709044,-260.8,0.000142,2]
[356680832,1742941709067,-565.9,0.00014246,2]
[356680833,1742941709091,-500.0,0.00014246,2]
[356680834,1742941709114,-559.75,0.00014246,2]
[356680835,1742941709138,-515.85,0.00014246,2]
[356680836,1742941709161,-500.0,0.00014246,2]
[356680837,1742941709187,-484.69,0.00014246,2]
[356680838,1742941709213,-1288.22,0.00014246,2]
[356680839,1742941709239,-1134.25,0.00014246,2]
[356680840,1742941709264,-1120.55,0.00014246,2]
[356680841,1742941709290,-1023.14,0.00014246,2]
[356680842,1742941709314,-500.0,0.00014246,2]
[356680843,1742941709340,-500.0,0.00014246,2]
[356680844,1742941709364,-500.0,0.00014246,2]
[356680845,1742941709391,-500.0,0.00014246,2]
[356680846,1742941709416,-500.0,0.00014246,2]
[356680847,1742941709441,-405.84,0.00014246,2]
[356680848,1742941709467,-500.0,0.00014246,2]
[356680849,1742941709491,-168.41,0.00014246,2]
[356680850,1742941709516,-500.0,0.00014246,2]
[356680851,1742941709542,-500.0,0.00014246,2]
[356680852,1742941709567,-500.0,0.00014246,2]
[356680853,1742941709593,-500.0,0.00014246,2]
[356680854,1742941709618,-500.0,0.00014246,2]
[356680855,1742941709643,-1409.12,0.00014246,2]
[356680856,1742941709668,-926.76,0.00014246,2]
[356680857,1742941709692,-500.0,0.00014246,2]
[356680858,1742941709720,-593.19,0.00014246,2]
[356680859,1742941709745,-198.48,0.00014246,2]
[356680860,1742941709771,-433.2,0.00014246,2]
[356680861,1742941709795,-500.0,0.00014246,2]
[356680862,1742941709817,-618.51,0.00014246,2]
[356680863,1742941709842,-1032.33,0.00014246,2]
[356680864,1742941709867,-1205.01,0.00014246,2]
[356680865,1742941709892,-344.36844065,0.00014246,2]
[356680866,1742941709921,-500.0,0.00014246,2]
[356680867,1742941709946,-607.04,0.00014246,2]
[356680868,1742941709969,-180.3,0.00014246,2]
[356680869,1742941709995,-1958.7,0.00014246,2]
[356680870,1742941710019,-1712.33,0.00014246,2]
[356680871,1742941710043,-500.0,0.00014246,2]
[356680872,1742941710242,-500.0,0.00014246,2]
[356680873,1742941710273,-500.0,0.00014246,2]
[356680874,1742941710305,-500.0,0.00014246,2]
[356680875,1742941710336,-2188.46,0.00014246,2]
[356680876,1742941710364,-17091.35,0.00014246,2]
[356680877,1742941710393,-517.13,0.00014246,2]
[356680878,1742941710420,-1366.45,0.00014246,2]
[356680879,1742941710446,-500.0,0.00014246,2]
[356680880,1742941710477,-150.0,0.00014482,2]
[356680881,1742941710502,-541.0,0.00014482,2]
[356680882,1742941710528,-1915.0,0.00014482,2]
[356680883,1742941710554,-2266.0,0.00014482,2]
[356680884,1742941710580,-400.0,0.00014482,2]
[356680885,1742941710604,-565.9,0.0001452,2]
[356680886,1742941710627,-632.83086801,0.0001452,2]
[356680887,1742941710651,-515.85,0.0001452,2]
[356680888,1742941710675,-500.0,0.0001452,2]
[356680889,1742941710699,-1288.22,0.0001452,2]
[356680890,1742941710730,-1134.25,0.0001452,2]
[356680891,1742941710754,-1120.55,0.0001452,2]
[356680892,1742941710779,-1023.14,0.0001452,2]
[356680893,1742941710802,-500.0,0.0001452,2]
[356680894,1742941710826,-500.0,0.0001452,2]
[356680895,1742941710850,-500.0,0.0001452,2]
[356680896,1742941710873,-500.0,0.0001452,2]
[356680897,1742941710896,-500.0,0.0001452,2]
[356680898,1742941710924,-230.2,0.0001452,2]
[356680899,1742941710947,-500.0,0.0001452,2]
[356680900,1742941710972,-500.0,0.0001452,2]
[356680901,1742941710995,-500.0,0.0001452,2]
[356680902,1742941711018,-500.0,0.0001452,2]
[356680903,1742941711040,-1409.12,0.0001452,2]
[356680904,1742941711062,-926.76,0.0001452,2]
[356680905,1742941711085,-500.0,0.0001452,2]
[356680906,1742941711110,-500.0,0.0001452,2]
[356680907,1742941711132,-618.51,0.0001452,2]
[356680908,1742941711156,-1032.33,0.0001452,2]
[356680909,1742941711180,-1205.01,0.0001452,2]
[356680910,1742941711204,-500.0,0.0001452,2]
[356680911,1742941711231,-607.04,0.0001452,2]
[356680912,1742941711257,-1958.7,0.0001452,2]
[356680913,1742941711282,-1712.33,0.0001452,2]
[356680914,1742941711306,-500.0,0.0001452,2]
[356680915,1742941711329,-500.0,0.0001452,2]
[356680916,1742941711356,-500.0,0.0001452,2]
[356680917,1742941711380,-500.0,0.0001452,2]
[356680918,1742941711404,-2188.46,0.0001452,2]
[356680919,1742941711428,-17091.35,0.0001452,2]
[356680920,1742941711451,-517.13,0.0001452,2]
[356680921,1742941711480,-1366.45,0.0001452,2]
[356680922,1742941711504,-500.0,0.0001452,2]
[356680923,1742941711529,-565.9,0.00014794,2]
[356680924,1742941711554,-515.85,0.00014794,2]
[356680925,1742941711577,-500.0,0.00014794,2]
[356680926,1742941711600,-1288.22,0.00014794,2]
[356680927,1742941711624,-1134.25,0.00014794,2]
[356680928,1742941711647,-1120.55,0.00014794,2]
[356680929,1742941711670,-1023.14,0.00014794,2]
[356680930,1742941711693,-500.0,0.00014794,2]
[356680931,1742941711718,-500.0,0.00014794,2]
[356680932,1742941711740,-500.0,0.00014794,2]
[356680933,1742941711764,-623.69,0.00014794,2]
[356680934,1742941711786,-500.0,0.00014794,2]
[356680935,1742941711809,-500.0,0.00014794,2]
[356680936,1742941711832,-597.28,0.00014794,2]
[356680937,1742941711856,-511.18,0.00014794,2]
[356680938,1742941711883,-500.0,0.00014794,2]
[356680939,1742941711906,-1409.12,0.00014794,2]
[356680940,1742941711933,-926.76,0.00014794,2]
[356680941,1742941711957,-500.0,0.00014794,2]
[356680942,1742941712005,-500.0,0.00014794,2]
[356680943,1742941712046,-618.51,0.00014794,2]
[356680944,1742941712089,-1032.33,0.00014794,2]
[356680945,1742941712130,-1205.01,0.00014794,2]
[356680946,1742941712176,-500.0,0.00014794,2]
[356680947,1742941712222,-607.04,0.00014794,2]
[356680948,1742941712268,-1958.7,0.00014794,2]
[356680949,1742941712314,-1712.33,0.00014794,2]
[356680950,1742941712360,-500.0,0.00014794,2]
[356680951,1742941712406,-500.0,0.00014794,2]
[356680952,1742941712455,-500.0,0.00014794,2]
[356680953,1742941712499,-500.0,0.00014794,2]
[356680954,1742941712541,-2188.46,0.00014794,2]
[356680955,1742941712582,-17091.35,0.00014794,2]
[356680956,1742941712621,-517.13,0.00014794,2]
[356680957,1742941712665,-1366.45,0.00014794,2]
[356680958,1742941712705,-500.0,0.00014794,2]
[356680959,1742941712748,-289.86629033,0.000149,2]
[356680960,1742941712791,-289.86629033,0.000149,2]
[356680961,1742941712834,-173.45859824,0.000149,2]
[356680962,1742941712881,-2000.0,0.00015,2]
[356680963,1742941712928,-100.05932715,0.00015066,2]
[356680966,1742941752298,-294.0,0.00010758,2]
[356680971,1742941773082,-4660.2136,0.00010758,2]
[356681037,1742941832485,-45.7864,0.00010758,2]
[356681038,1742941832495,-500.0,0.00010958,2]
[356681039,1742941832505,-500.0,0.00010958,2]
[356681040,1742941832516,-574.26,0.00010958,2]
[356681041,1742941832526,-500.0,0.00010958,2]
[356681042,1742941832535,-500.0,0.00010958,2]
[356681043,1742941832546,-500.0,0.00010958,2]
[356681044,1742941832556,-500.0,0.00010958,2]
[356681045,1742941832570,-500.0,0.00010958,2]
[356681046,1742941832580,-500.0,0.00010958,2]
[356681047,1742941832589,-187.86,0.00010958,2]
[356681048,1742941832599,-205.04895351,0.00010958,2]
[356681049,1742941832721,-294.95104649,0.00010958,2]
[356681050,1742941832730,-500.0,0.00010958,2]
[356681051,1742941832740,-500.0,0.00010958,2]
[356681052,1742941832750,-500.0,0.00010958,2]
[356681053,1742941832760,-1092.75,0.00010958,2]
[356681054,1742941832769,-502.88011407,0.00010958,2]
[356681055,1742941832779,-500.0,0.00010958,2]
[356681056,1742941832788,-505.61978857,0.00010958,2]
[356681057,1742941832798,-500.0,0.00010958,2]
[356681058,1742941832812,-500.0,0.00011232,2]
[356681059,1742941832821,-500.0,0.00011232,2]
[356681060,1742941832831,-574.26,0.00011232,2]
[356681061,1742941832841,-500.0,0.00011232,2]
[356681062,1742941832851,-500.0,0.00011232,2]
[356681063,1742941832860,-500.0,0.00011232,2]
[356681064,1742941832869,-500.0,0.00011232,2]
[356681065,1742941832879,-500.0,0.00011232,2]
[356681066,1742941832888,-500.0,0.00011232,2]
[356681067,1742941832899,-500.0,0.00011232,2]
[356681068,1742941832909,-6.23230787,0.00011232,2]
[356681069,1742941832921,-350.0,0.00011232,2]
[356681070,1742941832933,-143.76769213,0.00011232,2]
[356681071,1742941832944,-500.0,0.00011232,2]
[356681072,1742941832956,-1092.75,0.00011232,2]
[356681073,1742941832966,-297.47,0.00011232,2]
[356681074,1742941832976,-500.0,0.00011232,2]
[356681075,1742941832986,-500.0,0.00011506,2]
[356681076,1742941832996,-500.0,0.00011506,2]
[356681077,1742941833005,-574.26,0.00011506,2]
[356681078,1742941833015,-500.0,0.00011506,2]
[356681079,1742941833027,-500.0,0.00011506,2]
[356681080,1742941833036,-522.54,0.00011506,2]
[356681081,1742941833047,-500.0,0.00011506,2]
[356681082,1742941833058,-500.0,0.00011506,2]
[356681083,1742941833069,-500.0,0.00011506,2]
[356681084,1742941833079,-500.0,0.00011506,2]
[356681085,1742941833089,-315.53,0.00011506,2]
[356681086,1742941833099,-500.0,0.00011506,2]
[356681087,1742941833303,-1092.75,0.00011506,2]
[356681088,1742941833354,-500.0,0.00011506,2]
[356681089,1742941833365,-500.0,0.0001178,2]
[356681090,1742941833377,-500.0,0.0001178,2]
[356681091,1742941833388,-574.26,0.0001178,2]
[356681092,1742941833399,-500.0,0.0001178,2]
[356681093,1742941833409,-500.0,0.0001178,2]